[Event "European Women Rapid-ch 2023"]
[Site "Monaco"]
[Date "2024.01.13"]
[Round "1.24"]
[White "Berezovska, Svetlana"]
[Black "Kulon, Klaudia"]
[Result "0-1"]
[ECO "C55"]
[WhiteElo "1741"]
[BlackElo "2323"]
[Annotator "TA"]
[PlyCount "50"]
[EventDate "2023.12.19"]
[EventType "swiss"]
[EventCountry "MNC"]
[SourceTitle "playchess.com"]
[Source "ChessBase"]
[SourceQuality "1"]
[TimeControl "900+10"]

{[%evp 9,50,23,32,15,33,19,24,14,10,8,0,0,0,0,-18,-20,-6,-33,-23,-22,-23,-25,-20,-35,0,-35,-23,-75,-72,-68,-70,-73,-74,-761,-746,-830,-824,-822,-824,-956,-944,-1105,-1090]} 1. e4 {[%emt 0:00:02]} e5 {[%emt 0:00:01]} 2. Nf3 {[%emt 0:00:01]} Nc6 {[%emt 0:00:02]} 3. Bc4 {[%emt 0:00:02]} Nf6 {[%emt 0:00:03]} 4. d3 {[%emt 0:00:10]} h6 {[%emt 0:00:03]} 5. O-O {[%emt 0:00:03]} d6 {[%emt 0:00:04]} 6. h3 {[%emt 0:00:03]} g6 {[%emt 0:00:04]} 7. Be3 {[%emt 0:00:08]} Bg7 {[%emt 0:00:06]} 8. Qd2 {[%emt 0:00:09] White has an edge.} d5 {[%emt 0:01:37]} 9. exd5 {[%emt 0:00:30]} Nxd5 {[%emt 0:00:02]} 10. Nc3 {[%emt 0:01:20]} Nxe3 {[%emt 0:00:10]} 11. Qxe3 {[%emt 0:00:07][%cal Od3d4]} O-O {[%emt 0:00:05]} 12. Rfe1 {[%emt 0:00:21]} Kh7 {[%emt 0:00:38]} 13. Rad1 {[%emt 0:00:44]} Nd4 {[%emt 0:00:53]} 14. Bb3 {[%emt 0:02:07]} Nxf3+ {[%emt 0:01:04]} 15. Qxf3 {[%emt 0:00:16]} c6 {[%emt 0:00:00]} 16. Ne2 {[%emt 0:04:09]} (16. Bxf7 $2 {is the wrong capture.} Be6 17. Bxe6 Rxf3 18. gxf3 Qg5+ 19. Kf1 Qf6 $19) 16... f5 {[%emt 0:00:08]} 17. Ng3 {[%emt 0:01:03]} h5 {[%emt 0:00:23]} (17... Bd7 {simplifies} 18. Ne2 a5 19. a4 Qc7) 18. Nxh5 {[%emt 0:01:36]} gxh5 $17 {[%emt 0:00:02]} 19. Qxh5+ {[%emt 0:00:01]} Bh6 {[%emt 0:00:02]} 20. Rxe5 {[%emt 0:00:13]} Qg5 {[%emt 0:00:21] Chess con chili.} 21. Re7+ $2 {[%emt 0:01:31][%mdl 8192] [#] Now White is beyond hope.} Qxe7 $19 {[%emt 0:00:05] Black is clearly winning.} 22. Qf3 {[%emt 0:00:13]} Bd7 {[%emt 0:00:16]} 23. d4 {[%emt 0:00:17]} Rae8 {[%emt 0:00:46]} 24. d5 {[%emt 0:00:55]} Qe2 {[%emt 0:00:09]} 25. dxc6 {[%emt 0:00:40]} Bxc6 {[%emt 0:00:08] Weighted Error Value: White=0.73/Black=0.05 (flawless) .  Loses game:     	White=1     	---        Mistake:       	White=1     	---        Inaccurate:     	White=2     	Black=1      OK:         	White=1     	Black=5      Best:        	White=1     	Black=2} 0-1

[Event "European Women Rapid-ch 2023"]
[Site "Monaco"]
[Date "2024.01.13"]
[Round "1.25"]
[White "Papp, Petra"]
[Black "Protsyuk, Svitlana"]
[Result "1-0"]
[ECO "B35"]
[WhiteElo "2267"]
[BlackElo "1836"]
[Annotator "RC"]
[PlyCount "77"]
[EventDate "2023.12.19"]
[EventType "swiss"]
[EventCountry "MNC"]
[SourceTitle "playchess.com"]
[Source "ChessBase"]
[SourceQuality "1"]
[TimeControl "900+10"]

1. e4 {[%emt 0:00:03]} c5 {[%emt 0:00:00]} 2. Nf3 {[%emt 0:00:10]} Nc6 {[%emt 0:00:01]} 3. d4 {[%emt 0:00:38]} cxd4 {[%emt 0:00:02]} 4. Nxd4 {[%emt 0:00:02]} g6 {[%emt 0:00:00]} 5. Nc3 {[%emt 0:00:26]} Bg7 {[%emt 0:00:02]} 6. Be3 {[%emt 0:00:02]} Nf6 {[%emt 0:00:02]} 7. Bc4 {[%emt 0:00:01]} O-O {[%emt 0:00:10]} 8. Bb3 {[%emt 0:00:13]} Na5 {[%emt 0:02:03]} 9. e5 {[%emt 0:01:42]} Ne8 {[%emt 0:03:23]} 10. Bxf7+ {[%emt 0:04:04]} Kxf7 {[%emt 0:04:45]} 11. Ne6 {[%emt 0:00:39]} dxe6 {[%emt 0:05:20]} 12. Qxd8 {[%emt 0:00:20]} Nc6 {[%emt 0:00:08]} 13. Qd1 {[%emt 0:02:54]} Nxe5 {[%emt 0:00:06]} 14. Qe2 {[%emt 0:00:21]} Nd6 {[%emt 0:00:10]} 15. Bd4 {[%emt 0:00:31]} Nc6 {[%emt 0:00:45]} 16. Bxg7 {[%emt 0:00:16]} Kxg7 {[%emt 0:00:01]} 17. O-O {[%emt 0:01:23]} Bd7 {[%emt 0:00:05]} 18. f4 {[%emt 0:00:19]} Rf7 {[%emt 0:00:31]} 19. Rad1 {[%emt 0:00:13]} Raf8 {[%emt 0:00:30]} 20. g3 {[%emt 0:00:06]} Bc8 {[%emt 0:00:05]} 21. Ne4 {[%emt 0:00:39]} Nf5 {[%emt 0:00:00]} 22. Ng5 {[%emt 0:00:28]} Rf6 {[%emt 0:00:01]} 23. c3 {[%emt 0:00:04]} Nd6 {[%emt 0:00:15]} 24. Nf3 {[%emt 0:00:16]} Rf5 {[%emt 0:00:28]} 25. Ne5 {[%emt 0:00:26]} Nb8 {[%emt 0:00:12]} 26. c4 {[%emt 0:00:34]} b6 {[%emt 0:00:02]} 27. b4 {[%emt 0:00:08]} Na6 {[%emt 0:00:01]} 28. a3 {[%emt 0:00:20]} Nb8 {[%emt 0:00:04]} 29. Qb2 {[%emt 0:00:25]} Kg8 {[%emt 0:00:27]} 30. Ng4 {[%emt 0:00:53]} Nf7 {[%emt 0:00:16]} 31. Rfe1 {[%emt 0:00:23]} h5 {[%emt 0:00:11]} 32. Ne5 {[%emt 0:00:25]} Kh7 {[%emt 0:00:00]} 33. Nxf7 {[%emt 0:00:05]} R5xf7 {[%emt 0:00:03]} 34. b5 {[%emt 0:00:05]} Rf6 {[%emt 0:00:11]} 35. Qb4 {[%emt 0:00:16]} R6f7 {[%emt 0:00:10]} 36. c5 {[%emt 0:00:24]} bxc5 {[%emt 0:00:01]} 37. Qxc5 {[%emt 0:00:01]} a6 {[%emt 0:00:01]} 38. b6 {[%emt 0:00:06]} Nd7 {[%emt 0:00:04]} 39. Qc7 {[%emt 0:00:06]} 1-0

[Event "European Women Rapid-ch 2023"]
[Site "Monaco"]
[Date "2024.01.13"]
[Round "1.26"]
[White "Ciarletta, Iris"]
[Black "Unuk, Laura"]
[Result "0-1"]
[ECO "D37"]
[WhiteElo "1911"]
[BlackElo "2346"]
[Annotator "RC"]
[PlyCount "112"]
[EventDate "2023.12.19"]
[EventType "swiss"]
[EventCountry "MNC"]
[SourceTitle "playchess.com"]
[Source "ChessBase"]
[SourceQuality "1"]
[TimeControl "900+10"]

1. d4 {[%emt 0:00:03]} d5 {[%emt 0:00:05]} 2. c4 {[%emt 0:00:04]} e6 {[%emt 0:00:01]} 3. Nc3 {[%emt 0:00:02]} Nf6 {[%emt 0:00:05]} 4. Nf3 {[%emt 0:00:01]} Be7 {[%emt 0:00:08]} 5. Bf4 {[%emt 0:00:04]} O-O {[%emt 0:00:15]} 6. e3 {[%emt 0:00:16]} a6 {[%emt 0:00:03]} 7. cxd5 {[%emt 0:03:02]} exd5 {[%emt 0:00:13]} 8. Qc2 {[%emt 0:00:12]} h6 {[%emt 0:02:23]} 9. h3 {[%emt 0:01:17]} Bd6 {[%emt 0:00:43]} 10. Bxd6 {[%emt 0:01:28]} Qxd6 {[%emt 0:00:03]} 11. Bd3 {[%emt 0:00:03]} Nbd7 {[%emt 0:01:55]} 12. O-O {[%emt 0:01:37]} Re8 {[%emt 0:00:47]} 13. Rac1 {[%emt 0:01:06]} c6 {[%emt 0:00:30]} 14. Rfe1 {[%emt 0:00:51]} Qf8 {[%emt 0:02:09]} 15. Rcd1 {[%emt 0:01:35]} Re7 {[%emt 0:02:02]} 16. Nh4 {[%emt 0:00:44]} Re8 {[%emt 0:01:58]} 17. Nf5 {[%emt 0:00:50]} Nb6 {[%emt 0:01:01]} 18. Ng3 {[%emt 0:00:12]} a5 {[%emt 0:00:54]} 19. Nce2 {[%emt 0:00:45]} Bd7 {[%emt 0:00:10]} 20. Nf4 {[%emt 0:00:36]} Nc8 {[%emt 0:00:02]} 21. Nfh5 {[%emt 0:00:18]} Nxh5 {[%emt 0:00:07]} 22. Nxh5 {[%emt 0:00:10]} Nd6 {[%emt 0:00:02]} 23. Ng3 {[%emt 0:00:23]} Qe7 {[%emt 0:00:34]} 24. Rc1 {[%emt 0:00:43]} Qg5 {[%emt 0:00:37]} 25. Qc5 {[%emt 0:00:30]} Nf5 {[%emt 0:01:21]} 26. Bxf5 {[%emt 0:00:16]} Bxf5 {[%emt 0:00:02]} 27. Qb6 {[%emt 0:00:22]} Bc8 {[%emt 0:00:15]} 28. Rc5 {[%emt 0:00:34]} h5 {[%emt 0:00:04]} 29. Kh2 {[%emt 0:00:27]} h4 {[%emt 0:00:02]} 30. Ne2 {[%emt 0:00:05]} Qf6 {[%emt 0:00:19]} 31. Kg1 {[%emt 0:00:35]} Ra6 {[%emt 0:00:45]} 32. Qb3 {[%emt 0:00:11]} Qe7 {[%emt 0:00:05]} 33. Qc3 {[%emt 0:00:19]} a4 {[%emt 0:00:01]} 34. Qc2 {[%emt 0:00:17]} Qf6 {[%emt 0:00:11]} 35. Rc1 {[%emt 0:00:28]} Bf5 {[%emt 0:00:04]} 36. Qd1 {[%emt 0:00:07]} g5 {[%emt 0:00:11]} 37. R5c3 {[%emt 0:00:28]} Bg6 {[%emt 0:00:19]} 38. Ra3 {[%emt 0:00:07]} Bh5 {[%emt 0:00:01]} 39. Rc2 {[%emt 0:00:14]} Kg7 {[%emt 0:00:26]} 40. Rd2 {[%emt 0:00:03]} Re6 {[%emt 0:00:07]} 41. Rxa4 {[%emt 0:00:07]} Rxa4 {[%emt 0:00:13]} 42. Qxa4 {[%emt 0:00:01]} Qf5 {[%emt 0:00:01]} 43. Qc2 {[%emt 0:00:08]} Qf6 {[%emt 0:00:15]} 44. a3 {[%emt 0:00:09]} Bg6 {[%emt 0:00:19]} 45. Qd1 {[%emt 0:00:04]} Qe7 {[%emt 0:00:01]} 46. Nc3 {[%emt 0:00:03]} f5 {[%emt 0:00:03]} 47. Kh2 {[%emt 0:00:25]} Qc7+ {[%emt 0:00:06]} 48. Kg1 {[%emt 0:00:04]} Qf7 {[%emt 0:00:08]} 49. Qc1 {[%emt 0:00:13]} g4 {[%emt 0:00:03]} 50. Ne2 {[%emt 0:00:05]} gxh3 {[%emt 0:00:22]} 51. gxh3 {[%emt 0:00:04]} Bh5 {[%emt 0:00:09]} 52. Nf4 {[%emt 0:00:06]} Bf3 {[%emt 0:00:03]} 53. Kh2 {[%emt 0:00:14]} Rg6 {[%emt 0:00:22]} 54. Nxg6 {[%emt 0:00:08]} Kxg6 {[%emt 0:00:01]} 55. Qc5 {[%emt 0:00:29]} Kh7 {[%emt 0:00:16]} 56. Qd6 {[%emt 0:00:33]} Qg7 {[%emt 0:00:01]} 0-1

[Event "European Women Rapid-ch 2023"]
[Site "Monaco"]
[Date "2024.01.13"]
[Round "1.27"]
[White "Hejazipour, Mitra"]
[Black "Jose de Ribbegren, Kenia"]
[Result "1-0"]
[ECO "D11"]
[WhiteElo "2356"]
[BlackElo "1778"]
[Annotator "RC"]
[PlyCount "83"]
[EventDate "2023.12.19"]
[EventType "swiss"]
[EventCountry "MNC"]
[SourceTitle "playchess.com"]
[Source "ChessBase"]
[SourceQuality "1"]
[TimeControl "900+10"]

1. d4 {[%emt 0:00:02]} d5 {[%emt 0:00:04]} 2. Nf3 {[%emt 0:00:02]} Nf6 {[%emt 0:00:03]} 3. c4 {[%emt 0:00:02]} c6 {[%emt 0:00:05]} 4. g3 {[%emt 0:00:05]} Bf5 {[%emt 0:00:09]} 5. Bg2 {[%emt 0:00:03]} e6 {[%emt 0:00:05]} 6. O-O {[%emt 0:00:15]} Be7 {[%emt 0:00:03]} 7. Nc3 {[%emt 0:00:05]} O-O {[%emt 0:00:03]} 8. Nh4 {[%emt 0:00:05]} Bg6 {[%emt 0:00:07]} 9. Nxg6 {[%emt 0:00:06]} hxg6 {[%emt 0:00:03]} 10. Qd3 {[%emt 0:00:39]} Nbd7 {[%emt 0:00:26]} 11. Rd1 {[%emt 0:00:36]} Rc8 {[%emt 0:00:33]} 12. e4 {[%emt 0:00:55]} dxe4 {[%emt 0:00:23]} 13. Nxe4 {[%emt 0:00:02]} Nxe4 {[%emt 0:00:11]} 14. Qxe4 {[%emt 0:00:15]} Nf6 {[%emt 0:00:05]} 15. Qe2 {[%emt 0:00:08]} Re8 {[%emt 0:00:48]} 16. b3 {[%emt 0:00:30]} Qa5 {[%emt 0:00:42]} 17. h4 {[%emt 0:03:43]} Ba3 {[%emt 0:02:56]} 18. Bg5 {[%emt 0:01:39]} a6 {[%emt 0:01:46]} 19. Rd3 {[%emt 0:00:18]} Be7 {[%emt 0:02:00]} 20. Rad1 {[%emt 0:01:24]} b5 {[%emt 0:01:09]} 21. c5 {[%emt 0:00:41]} Qd8 {[%emt 0:01:42]} 22. Bxf6 {[%emt 0:00:53]} Bxf6 {[%emt 0:00:03]} 23. h5 {[%emt 0:00:04]} gxh5 {[%emt 0:00:58]} 24. Qxh5 {[%emt 0:00:02]} g6 {[%emt 0:00:02]} 25. Qg4 {[%emt 0:00:50]} Kg7 {[%emt 0:00:33]} 26. Be4 {[%emt 0:00:14]} Rh8 {[%emt 0:00:41]} 27. Kg2 {[%emt 0:00:32]} Qg8 {[%emt 0:00:40]} 28. Qf3 {[%emt 0:01:43]} Qe8 {[%emt 0:00:48]} 29. Rh1 {[%emt 0:00:09]} Rxh1 {[%emt 0:00:23]} 30. Kxh1 {[%emt 0:00:01]} Qd7 {[%emt 0:00:15]} 31. Kg2 {[%emt 0:00:02]} Bg5 {[%emt 0:00:16]} 32. Rd1 {[%emt 0:00:16]} f5 {[%emt 0:00:15]} 33. Bc2 {[%emt 0:00:12]} Rh8 {[%emt 0:00:02]} 34. Re1 {[%emt 0:00:20]} Bf6 {[%emt 0:00:28]} 35. b4 {[%emt 0:00:26]} Bxd4 {[%emt 0:00:47]} 36. Bb3 {[%emt 0:00:05]} e5 {[%emt 0:00:22]} 37. Rd1 {[%emt 0:00:09]} e4 {[%emt 0:00:41]} 38. Qf4 {[%emt 0:00:31]} Re8 {[%emt 0:00:17]} 39. Rh1 {[%emt 0:00:13]} Rh8 {[%emt 0:00:35]} 40. Rxh8 {[%emt 0:00:08]} Kxh8 {[%emt 0:00:00]} 41. Qh6+ {[%emt 0:00:03]} Qh7 {[%emt 0:00:14]} 42. Qf8+ {[%emt 0:00:02]} 1-0

[Event "European Women Rapid-ch 2023"]
[Site "Monaco"]
[Date "2024.01.13"]
[Round "2.1"]
[White "Gaprindashvili, Nona"]
[Black "Kosteniuk, Alexandra"]
[Result "0-1"]
[ECO "E11"]
[WhiteElo "2243"]
[BlackElo "2501"]
[Annotator "RC"]
[PlyCount "85"]
[EventDate "2023.12.19"]
[EventType "swiss"]
[EventCountry "MNC"]
[SourceTitle "playchess.com"]
[Source "ChessBase"]
[SourceQuality "1"]
[TimeControl "900+10"]

1. d4 {[%emt 0:00:02]} Nf6 {[%emt 0:00:02]} 2. c4 {[%emt 0:00:01]} e6 {[%emt 0:00:01]} 3. Nf3 {[%emt 0:00:28]} Bb4+ {[%emt 0:00:02]} 4. Bd2 {[%emt 0:00:07]} Qe7 {[%emt 0:00:02]} 5. a3 {[%emt 0:00:14]} Bxd2+ {[%emt 0:00:03]} 6. Qxd2 {[%emt 0:00:03]} O-O {[%emt 0:00:08]} 7. Nc3 {[%emt 0:00:01]} d5 {[%emt 0:00:03]} 8. e3 {[%emt 0:00:03]} dxc4 {[%emt 0:00:03]} 9. Bxc4 {[%emt 0:00:02]} b6 {[%emt 0:00:08]} 10. O-O {[%emt 0:00:23]} Bb7 {[%emt 0:00:03]} 11. Be2 {[%emt 0:00:04]} Rd8 {[%emt 0:00:44]} 12. Qc2 {[%emt 0:01:32]} c5 {[%emt 0:00:05]} 13. Rfd1 {[%emt 0:00:03]} Nbd7 {[%emt 0:00:25]} 14. Rd2 {[%emt 0:00:16]} Rac8 {[%emt 0:00:11]} 15. Qd1 {[%emt 0:00:13]} cxd4 {[%emt 0:00:20]} 16. Rxd4 {[%emt 0:00:05]} Nc5 {[%emt 0:01:08]} 17. Rxd8+ {[%emt 0:01:18]} Rxd8 {[%emt 0:00:06]} 18. Qc2 {[%emt 0:00:15]} Rc8 {[%emt 0:00:16]} 19. Qd1 {[%emt 0:00:22]} Nfe4 {[%emt 0:00:20]} 20. Nxe4 {[%emt 0:00:06]} Bxe4 {[%emt 0:00:02]} 21. Rc1 {[%emt 0:00:11]} Rd8 {[%emt 0:00:16]} 22. Qf1 {[%emt 0:01:14]} a5 {[%emt 0:01:32]} 23. Rd1 {[%emt 0:00:33]} Rc8 {[%emt 0:01:25]} 24. Rc1 {[%emt 0:00:02]} a4 {[%emt 0:00:24]} 25. Nd2 {[%emt 0:00:40]} Bd5 {[%emt 0:00:34]} 26. Bf3 {[%emt 0:00:16]} Qb7 {[%emt 0:00:35]} 27. Bxd5 {[%emt 0:00:10]} Qxd5 {[%emt 0:00:02]} 28. Nf3 {[%emt 0:00:28]} Qb3 {[%emt 0:00:11]} 29. Qe2 {[%emt 0:00:19]} Rd8 {[%emt 0:01:07]} 30. Nd4 {[%emt 0:00:30]} Qd5 {[%emt 0:00:02]} 31. h3 {[%emt 0:02:25]} g6 {[%emt 0:00:21]} 32. Qc4 {[%emt 0:00:43]} e5 {[%emt 0:03:55]} 33. Qxd5 {[%emt 0:00:20]} Rxd5 {[%emt 0:00:02]} 34. Nf3 {[%emt 0:00:15]} f6 {[%emt 0:00:19]} 35. Rc4 {[%emt 0:00:06]} Rd1+ {[%emt 0:00:57]} 36. Kh2 {[%emt 0:00:02]} Kf7 {[%emt 0:00:02]} 37. Rc2 {[%emt 0:01:15]} Ke6 {[%emt 0:00:06]} 38. Nd2 {[%emt 0:00:06]} Nd3 {[%emt 0:00:34]} 39. Ne4 {[%emt 0:03:27]} Rb1 {[%emt 0:00:02]} 40. Rd2 {[%emt 0:02:35]} Nc5 {[%emt 0:00:04]} 41. Nxc5+ {[%emt 0:00:11]} bxc5 {[%emt 0:00:01]} 42. Rc2 {[%emt 0:00:04]} Kd5 {[%emt 0:00:01]} 43. f3 {[%emt 0:00:39]} 0-1

[Event "European Women Rapid-ch 2023"]
[Site "Monaco"]
[Date "2024.01.13"]
[Round "2.2"]
[White "Dornbusch, Tatiana"]
[Black "Khotenashvili, Bella"]
[Result "0-1"]
[ECO "A43"]
[WhiteElo "2218"]
[BlackElo "2467"]
[Annotator "RC"]
[PlyCount "130"]
[EventDate "2023.12.19"]
[EventType "swiss"]
[EventCountry "MNC"]
[SourceTitle "playchess.com"]
[Source "ChessBase"]
[SourceQuality "1"]
[TimeControl "900+10"]

1. d4 {[%emt 0:00:03]} g6 {[%emt 0:00:08]} 2. Nf3 {[%emt 0:00:08]} Bg7 {[%emt 0:00:02]} 3. g3 {[%emt 0:00:45]} c5 {[%emt 0:00:05]} 4. d5 {[%emt 0:00:14]} d6 {[%emt 0:00:19]} 5. Bg2 {[%emt 0:00:16]} b5 {[%emt 0:00:07]} 6. a4 {[%emt 0:00:49]} b4 {[%emt 0:00:06]} 7. O-O {[%emt 0:00:21]} Nf6 {[%emt 0:00:54]} 8. Re1 {[%emt 0:00:58]} O-O {[%emt 0:00:11]} 9. c4 {[%emt 0:01:36]} bxc3 {[%emt 0:00:12]} 10. Nxc3 {[%emt 0:00:02]} Na6 {[%emt 0:00:10]} 11. e4 {[%emt 0:00:37]} Nd7 {[%emt 0:00:12]} 12. Bg5 {[%emt 0:00:56]} Nb4 {[%emt 0:00:35]} 13. Qd2 {[%emt 0:00:23]} Re8 {[%emt 0:00:56]} 14. Nb5 {[%emt 0:01:16]} Qb6 {[%emt 0:01:19]} 15. Bf1 {[%emt 0:00:42]} Ba6 {[%emt 0:01:27]} 16. Rac1 {[%emt 0:01:16]} Qb7 {[%emt 0:01:38]} 17. b3 {[%emt 0:00:22]} Bxb5 {[%emt 0:00:44]} 18. Bxb5 {[%emt 0:00:21]} a6 {[%emt 0:00:09]} 19. Bc4 {[%emt 0:01:02]} Nb6 {[%emt 0:00:17]} 20. Bf1 {[%emt 0:00:16]} Qd7 {[%emt 0:00:30]} 21. Rcd1 {[%emt 0:01:48]} Rab8 {[%emt 0:00:33]} 22. Nh4 {[%emt 0:00:38]} Qc7 {[%emt 0:00:32]} 23. Be3 {[%emt 0:00:27]} Nd7 {[%emt 0:00:41]} 24. h3 {[%emt 0:01:05]} Bf6 {[%emt 0:02:21]} 25. Nf3 {[%emt 0:00:17]} Nb6 {[%emt 0:00:32]} 26. Rc1 {[%emt 0:00:32]} Qb7 {[%emt 0:00:15]} 27. Bg5 {[%emt 0:01:01]} Bg7 {[%emt 0:00:02]} 28. Kh2 {[%emt 0:00:27]} Nd7 {[%emt 0:03:35]} 29. Bc4 {[%emt 0:00:18]} Qb6 {[%emt 0:00:37]} 30. Bh6 {[%emt 0:00:13]} Bh8 {[%emt 0:00:01]} 31. Bg5 {[%emt 0:00:24]} Qa5 {[%emt 0:00:14]} 32. Re2 {[%emt 0:00:14]} Nb6 {[%emt 0:00:06]} 33. Bd3 {[%emt 0:00:06]} e6 {[%emt 0:00:10]} 34. dxe6 {[%emt 0:00:13]} Rxe6 {[%emt 0:00:01]} 35. Bc4 {[%emt 0:00:33]} Nxc4 {[%emt 0:00:03]} 36. Rxc4 {[%emt 0:00:01]} Nc6 {[%emt 0:00:09]} 37. e5 {[%emt 0:00:08]} Qxd2 {[%emt 0:00:11]} 38. Rxd2 {[%emt 0:00:12]} Nxe5 {[%emt 0:00:39]} 39. Nxe5 {[%emt 0:00:03]} Bxe5 {[%emt 0:00:01]} 40. Rd3 {[%emt 0:00:24]} Bd4 {[%emt 0:00:03]} 41. Be3 {[%emt 0:00:10]} Bxe3 {[%emt 0:00:04]} 42. fxe3 {[%emt 0:00:02]} Kf8 {[%emt 0:00:19]} 43. Kg2 {[%emt 0:00:01]} Ke7 {[%emt 0:00:01]} 44. Kf3 {[%emt 0:00:02]} Rf6+ {[%emt 0:00:03]} 45. Rf4 {[%emt 0:00:08]} Rxf4+ {[%emt 0:00:07]} 46. gxf4 {[%emt 0:00:23]} f5 {[%emt 0:00:02]} 47. Ke2 {[%emt 0:00:26]} Ke6 {[%emt 0:00:05]} 48. Rc3 {[%emt 0:00:06]} Rb4 {[%emt 0:00:05]} 49. Kd3 {[%emt 0:00:08]} Kd5 {[%emt 0:00:00]} 50. h4 {[%emt 0:00:10]} a5 {[%emt 0:00:09]} 51. Ke2 {[%emt 0:00:17]} Ke4 {[%emt 0:00:11]} 52. Kf2 {[%emt 0:00:06]} Kd5 {[%emt 0:00:30]} 53. Rd3+ {[%emt 0:00:08]} Kc6 {[%emt 0:00:05]} 54. h5 {[%emt 0:00:16]} gxh5 {[%emt 0:00:47]} 55. Kg3 {[%emt 0:00:00]} d5 {[%emt 0:00:02]} 56. Kh4 {[%emt 0:00:04]} c4 {[%emt 0:00:04]} 57. bxc4 {[%emt 0:00:12]} dxc4 {[%emt 0:00:01]} 58. Rd8 {[%emt 0:00:19]} Rxa4 {[%emt 0:00:11]} 59. Kxh5 {[%emt 0:00:04]} Ra3 {[%emt 0:00:08]} 60. Rc8+ {[%emt 0:00:15]} Kb5 {[%emt 0:00:30]} 61. Re8 {[%emt 0:00:07]} c3 {[%emt 0:00:10]} 62. Rc8 {[%emt 0:00:02]} Kb4 {[%emt 0:00:04]} 63. Kg5 {[%emt 0:00:01]} Kb3 {[%emt 0:00:14]} 64. Kxf5 {[%emt 0:00:16]} Ra4 {[%emt 0:00:01]} 65. e4 {[%emt 0:00:38]} c2 {[%emt 0:00:21]} 0-1

[Event "European Women Rapid-ch 2023"]
[Site "Monaco"]
[Date "2024.01.13"]
[Round "2.3"]
[White "Salimova, Nurgyul"]
[Black "Garcia Martin, Marta"]
[Result "1/2-1/2"]
[ECO "D37"]
[WhiteElo "2426"]
[BlackElo "2342"]
[Annotator "RC"]
[PlyCount "118"]
[EventDate "2023.12.19"]
[EventType "swiss"]
[EventCountry "MNC"]
[SourceTitle "playchess.com"]
[Source "ChessBase"]
[SourceQuality "1"]
[TimeControl "900+10"]

1. d4 {[%emt 0:00:05]} d5 {[%emt 0:00:03]} 2. Nf3 {[%emt 0:00:02]} e6 {[%emt 0:00:06]} 3. c4 {[%emt 0:00:22]} a6 {[%emt 0:00:17]} 4. cxd5 {[%emt 0:00:17]} exd5 {[%emt 0:00:02]} 5. Nc3 {[%emt 0:00:09]} Nf6 {[%emt 0:00:05]} 6. Bf4 {[%emt 0:00:05]} Bd6 {[%emt 0:00:04]} 7. Bg3 {[%emt 0:00:08]} O-O {[%emt 0:01:56]} 8. e3 {[%emt 0:00:03]} Bf5 {[%emt 0:00:05]} 9. Bd3 {[%emt 0:00:54]} Bxd3 {[%emt 0:00:03]} 10. Qxd3 {[%emt 0:00:01]} Re8 {[%emt 0:00:31]} 11. Bh4 {[%emt 0:02:06]} c6 {[%emt 0:00:19]} 12. O-O {[%emt 0:02:12]} Nbd7 {[%emt 0:00:21]} 13. Rab1 {[%emt 0:00:09]} Be7 {[%emt 0:04:46]} 14. Bxf6 {[%emt 0:00:36]} Nxf6 {[%emt 0:00:22]} 15. b4 {[%emt 0:00:58]} Bd6 {[%emt 0:00:02]} 16. Na4 {[%emt 0:01:10]} Qe7 {[%emt 0:00:37]} 17. Nc5 {[%emt 0:00:38]} a5 {[%emt 0:01:15]} 18. b5 {[%emt 0:01:30]} Bxc5 {[%emt 0:00:51]} 19. dxc5 {[%emt 0:00:02]} Qxc5 {[%emt 0:00:40]} 20. Rfc1 {[%emt 0:00:11]} Qd6 {[%emt 0:00:01]} 21. bxc6 {[%emt 0:00:03]} bxc6 {[%emt 0:00:01]} 22. Rb6 {[%emt 0:00:21]} Rec8 {[%emt 0:00:32]} 23. Nd4 {[%emt 0:02:21]} Ng4 {[%emt 0:00:25]} 24. f4 {[%emt 0:00:55]} Rab8 {[%emt 0:05:05]} 25. Rxb8 {[%emt 0:01:03]} Rxb8 {[%emt 0:00:12]} 26. h3 {[%emt 0:00:23]} Nf6 {[%emt 0:00:03]} 27. Rxc6 {[%emt 0:00:09]} Qb4 {[%emt 0:00:25]} 28. Kh2 {[%emt 0:01:09]} Ne4 {[%emt 0:00:16]} 29. Qb3 {[%emt 0:01:28]} Qxb3 {[%emt 0:00:16]} 30. axb3 {[%emt 0:00:02]} g6 {[%emt 0:00:08]} 31. Ra6 {[%emt 0:00:14]} Nc5 {[%emt 0:00:16]} 32. Rxa5 {[%emt 0:00:09]} Nxb3 {[%emt 0:00:01]} 33. Rxd5 {[%emt 0:00:04]} Nxd4 {[%emt 0:00:34]} 34. Rxd4 {[%emt 0:00:10]} Rb3 {[%emt 0:00:00]} 35. Re4 {[%emt 0:00:31]} Kg7 {[%emt 0:00:02]} 36. Kg3 {[%emt 0:00:04]} Kf6 {[%emt 0:00:01]} 37. Kf3 {[%emt 0:00:02]} h5 {[%emt 0:00:02]} 38. g4 {[%emt 0:00:22]} hxg4+ {[%emt 0:00:01]} 39. hxg4 {[%emt 0:00:04]} g5 {[%emt 0:00:10]} 40. f5 {[%emt 0:00:13]} Rb1 {[%emt 0:00:04]} 41. Ra4 {[%emt 0:00:17]} Rf1+ {[%emt 0:00:43]} 42. Ke4 {[%emt 0:00:03]} Rg1 {[%emt 0:00:03]} 43. Kd5 {[%emt 0:00:18]} Rd1+ {[%emt 0:00:10]} 44. Rd4 {[%emt 0:00:03]} Ra1 {[%emt 0:00:04]} 45. Ke4 {[%emt 0:00:13]} Rg1 {[%emt 0:00:05]} 46. Kf3 {[%emt 0:00:16]} Ke5 {[%emt 0:00:15]} 47. Re4+ {[%emt 0:00:04]} Kf6 {[%emt 0:00:12]} 48. Re8 {[%emt 0:00:10]} Rf1+ {[%emt 0:00:03]} 49. Kg2 {[%emt 0:00:06]} Ra1 {[%emt 0:00:17]} 50. e4 {[%emt 0:00:20]} Ra2+ {[%emt 0:00:20]} 51. Kf3 {[%emt 0:00:03]} Ra3+ {[%emt 0:00:02]} 52. Kf2 {[%emt 0:00:02]} Ra2+ {[%emt 0:00:08]} 53. Ke3 {[%emt 0:00:03]} Ra3+ {[%emt 0:00:01]} 54. Kd4 {[%emt 0:00:09]} Ra4+ {[%emt 0:00:22]} 55. Kd5 {[%emt 0:00:16]} Ra5+ {[%emt 0:00:00]} 56. Kd4 {[%emt 0:00:12]} Ra4+ {[%emt 0:00:01]} 57. Kc3 {[%emt 0:00:21]} Ra3+ {[%emt 0:00:09]} 58. Kd4 {[%emt 0:00:06]} Ra4+ {[%emt 0:00:01]} 59. Kd5 {[%emt 0:00:10]} Ra5+ {[%emt 0:00:00]} 1/2-1/2